[Event "*** Titled Tuesday 3|2 Blitz"]
[Site "Chess.com"]
[Date "2017.03.07"]
[Round "6"]
[White "MattyDPerrine"]
[Black "Abdodi"]
[Result "1-0"]
[WhiteElo "2217"]
[BlackElo "2018"]
[TimeControl "180+2"]
[EndTime "14:25:02 PST"]
[Termination "MattyDPerrine won by checkmate"]

1. Nf3 {[%clk 0:03:02]} 1... d5 {[%clk 0:02:55.9]} 2. g3 {[%clk 0:03:02.8]} 2...
Nc6 {[%clk 0:02:54.2]} 3. d4 {[%clk 0:02:55.6]} 3... Nf6 {[%clk 0:02:51.9]} 4.
Bg2 {[%clk 0:02:56.3]} 4... Bf5 {[%clk 0:02:52]} 5. O-O {[%clk 0:02:57.3]} 5...
e6 {[%clk 0:02:51.7]} 6. c4 {[%clk 0:02:58.5]} 6... dxc4 {[%clk 0:02:50.7]} 7.
Qa4 {[%clk 0:02:56.9]} 7... Be7 {[%clk 0:02:46]} 8. Ne5 {[%clk 0:02:52.4]} 8...
O-O {[%clk 0:02:37.5]} 9. Nxc6 {[%clk 0:02:52.9]} 9... bxc6 {[%clk 0:02:36.9]}
10. Qxc4 {[%clk 0:02:54.5]} 10... Be4 {[%clk 0:02:29.3]} 11. Nc3 {[%clk
0:02:47.2]} 11... Bxg2 {[%clk 0:02:20.3]} 12. Kxg2 {[%clk 0:02:47.5]} 12... Nd5
{[%clk 0:02:22.2]} 13. Qxc6 {[%clk 0:02:40.3]} 13... Nb4 {[%clk 0:02:21.1]} 14.
Qe4 {[%clk 0:02:36.5]} 14... Bf6 {[%clk 0:02:15.8]} 15. Rd1 {[%clk 0:02:34.8]}
15... Rb8 {[%clk 0:02:13.2]} 16. a3 {[%clk 0:02:15.3]} 16... Nd5 {[%clk
0:02:03.2]} 17. Qc2 {[%clk 0:01:46.9]} 17... Qc8 {[%clk 0:01:53.3]} 18. Nxd5
{[%clk 0:01:08.1]} 18... exd5 {[%clk 0:01:55.2]} 19. b4 {[%clk 0:01:01.2]} 19...
a5 {[%clk 0:01:55.6]} 20. Rb1 {[%clk 0:00:53]} 20... axb4 {[%clk 0:01:52.5]} 21.
axb4 {[%clk 0:00:54.9]} 21... Be7 {[%clk 0:01:48.7]} 22. Bf4 {[%clk 0:00:49.7]}
22... Rb7 {[%clk 0:01:37.2]} 23. Qc6 {[%clk 0:00:37.5]} 23... Rxb4 {[%clk
0:01:09.6]} 24. Rxb4 {[%clk 0:00:36.1]} 24... Bxb4 {[%clk 0:01:11.5]} 25. Qxd5
{[%clk 0:00:34.2]} 25... c6 {[%clk 0:01:04.3]} 26. Qc4 {[%clk 0:00:33]} 26...
Be7 {[%clk 0:00:49.5]} 27. Rc1 {[%clk 0:00:33.5]} 27... Qd7 {[%clk 0:00:50.3]}
28. h4 {[%clk 0:00:25.4]} 28... h6 {[%clk 0:00:46.9]} 29. Be5 {[%clk 0:00:16.7]}
29... Rc8 {[%clk 0:00:39.4]} 30. d5 {[%clk 0:00:15.4]} 30... c5 {[%clk
0:00:40.3]} 31. e4 {[%clk 0:00:14.6]} 31... Ra8 {[%clk 0:00:34.4]} 32. Rb1
{[%clk 0:00:14.4]} 32... Ra4 {[%clk 0:00:33.5]} 33. Rb8+ {[%clk 0:00:12.4]}
33... Kh7 {[%clk 0:00:34]} 34. Qc2 {[%clk 0:00:13.6]} 34... Qa7 {[%clk
0:00:30.2]} 35. Rc8 {[%clk 0:00:11]} 35... Ra2 {[%clk 0:00:30.6]} 36. Qd3 {[%clk
0:00:11.3]} 36... c4 {[%clk 0:00:17.2]} 37. Qf3 {[%clk 0:00:12.2]} 37... Bc5
{[%clk 0:00:16]} 38. Qf5+ {[%clk 0:00:11.8]} 38... g6 {[%clk 0:00:09.8]} 39.
Rh8# {[%clk 0:00:13.7]} 1-0

[Event "*** Titled Tuesday 3|2 Blitz"]
[Site "Chess.com"]
[Date "2017.03.07"]
[Round "6"]
[White "Vegan4future"]
[Black "quesfr"]
[Result "0-1"]
[WhiteElo "2250"]
[BlackElo "2149"]
[TimeControl "180+2"]
[EndTime "14:25:03 PST"]
[Termination "quesfr won by resignation"]

1. e4 {[%clk 0:03:02]} 1... e6 {[%clk 0:03:01.2]} 2. Nf3 {[%clk 0:03:02.2]} 2...
d5 {[%clk 0:03:02.3]} 3. Nc3 {[%clk 0:03:03.2]} 3... d4 {[%clk 0:03:01]} 4. Ne2
{[%clk 0:03:04.2]} 4... c5 {[%clk 0:03:02.2]} 5. Ng3 {[%clk 0:03:05.8]} 5... Nc6
{[%clk 0:03:00.9]} 6. Bb5 {[%clk 0:03:06.7]} 6... Bd6 {[%clk 0:02:54.8]} 7. O-O
{[%clk 0:03:07.3]} 7... e5 {[%clk 0:02:55.4]} 8. d3 {[%clk 0:03:06.7]} 8... Ne7
{[%clk 0:02:52.9]} 9. Nh4 {[%clk 0:03:03.2]} 9... Be6 {[%clk 0:02:47.6]} 10.
Bxc6+ {[%clk 0:03:03.2]} 10... Nxc6 {[%clk 0:02:46.2]} 11. Nhf5 {[%clk
0:03:04.4]} 11... Bxf5 {[%clk 0:02:40]} 12. Nxf5 {[%clk 0:03:04.6]} 12... Qf6
{[%clk 0:02:40.5]} 13. Nxd6+ {[%clk 0:03:01.3]} 13... Qxd6 {[%clk 0:02:40.3]}
14. f4 {[%clk 0:03:03.2]} 14... O-O {[%clk 0:02:27]} 15. f5 {[%clk 0:03:03]}
15... f6 {[%clk 0:02:13.2]} 16. Bd2 {[%clk 0:02:55.5]} 16... b5 {[%clk
0:02:13.9]} 17. b3 {[%clk 0:02:56.6]} 17... c4 {[%clk 0:02:05.6]} 18. bxc4
{[%clk 0:02:57.5]} 18... bxc4 {[%clk 0:02:06.7]} 19. Qg4 {[%clk 0:02:42.8]}
19... Rab8 {[%clk 0:01:57.1]} 20. Bh6 {[%clk 0:02:18.3]} 20... Rf7 {[%clk
0:01:58]} 21. Rab1 {[%clk 0:02:18.1]} 21... Rfb7 {[%clk 0:01:55.4]} 22. Rb5
{[%clk 0:02:00]} 22... Qf8 {[%clk 0:01:43.1]} 23. Rd5 {[%clk 0:01:45.7]} 23...
cxd3 {[%clk 0:01:15.3]} 24. cxd3 {[%clk 0:01:45.9]} 24... Nb4 {[%clk 0:01:16.3]}
25. Ra5 {[%clk 0:01:26.8]} 25... Nxd3 {[%clk 0:01:16.5]} 26. h4 {[%clk
0:01:23.3]} 26... Qb4 {[%clk 0:00:54.5]} 27. Ra6 {[%clk 0:01:15.5]} 27... Kh8
{[%clk 0:00:54.8]} 28. Qf3 {[%clk 0:00:54.5]} 28... Qc4 {[%clk 0:00:51.5]} 29.
Ra3 {[%clk 0:00:52.3]} 29... Nb4 {[%clk 0:00:25.4]} 30. Bd2 {[%clk 0:00:42.2]}
30... Nc2 {[%clk 0:00:19.7]} 31. Ra6 {[%clk 0:00:40]} 31... Qxa6 {[%clk
0:00:20.1]} 32. h5 {[%clk 0:00:40.9]} 32... Rb1 {[%clk 0:00:16.7]} 33. Rxb1
{[%clk 0:00:40.6]} 33... Rxb1+ {[%clk 0:00:16.3]} 34. Kh2 {[%clk 0:00:42.5]}
34... Qf1 {[%clk 0:00:17]} 35. Qg4 {[%clk 0:00:26.5]} 35... Qg1+ {[%clk
0:00:12.4]} 36. Kh3 {[%clk 0:00:25.4]} 36... Ne1 {[%clk 0:00:11.4]} 37. h6
{[%clk 0:00:22.4]} 37... Qh1+ {[%clk 0:00:12.2]} 38. Kg3 {[%clk 0:00:23.6]}
38... Qxg2+ {[%clk 0:00:13]} 39. Kh4 {[%clk 0:00:24.4]} 39... Nf3+ {[%clk
0:00:13.2]} 40. Qxf3 {[%clk 0:00:23.1]} 40... Rh1+ {[%clk 0:00:10.3]} 0-1

[Event "*** Titled Tuesday 3|2 Blitz"]
[Site "Chess.com"]
[Date "2017.03.07"]
[Round "6"]
[White "Vrolijk"]
[Black "Gordima"]
[Result "0-1"]
[WhiteElo "2306"]
[BlackElo "2485"]
[TimeControl "180+2"]
[EndTime "14:25:13 PST"]
[Termination "Gordima won by resignation"]

1. d4 {[%clk 0:03:02]} 1... Nf6 {[%clk 0:02:59.6]} 2. c4 {[%clk 0:03:00.6]} 2...
g6 {[%clk 0:03:00.6]} 3. Nc3 {[%clk 0:03:01]} 3... Bg7 {[%clk 0:03:01.5]} 4. e4
{[%clk 0:03:01.9]} 4... O-O {[%clk 0:03:01.4]} 5. f3 {[%clk 0:03:00.7]} 5... d6
{[%clk 0:03:02.7]} 6. Nge2 {[%clk 0:03:01.5]} 6... a6 {[%clk 0:03:01.1]} 7. Be3
{[%clk 0:02:53.5]} 7... Nbd7 {[%clk 0:03:01.6]} 8. Qd2 {[%clk 0:02:51.7]} 8...
e5 {[%clk 0:03:02.4]} 9. Ng3 {[%clk 0:02:35.9]} 9... h5 {[%clk 0:02:53]} 10. Be2
{[%clk 0:02:26.4]} 10... h4 {[%clk 0:02:46.8]} 11. Nf1 {[%clk 0:02:27.1]} 11...
exd4 {[%clk 0:02:44.3]} 12. Bxd4 {[%clk 0:02:27.8]} 12... Ne5 {[%clk 0:02:38.8]}
13. Bf2 {[%clk 0:02:26.3]} 13... Nh5 {[%clk 0:02:35.8]} 14. g3 {[%clk
0:02:24.1]} 14... Kh7 {[%clk 0:02:21.4]} 15. g4 {[%clk 0:02:16.9]} 15... Bh6
{[%clk 0:02:21.4]} 16. Be3 {[%clk 0:02:01.8]} 16... Bxe3 {[%clk 0:02:18.3]} 17.
Qxe3 {[%clk 0:02:03.7]} 17... Ng7 {[%clk 0:02:17.9]} 18. h3 {[%clk 0:01:45.5]}
18... g5 {[%clk 0:02:17.9]} 19. O-O-O {[%clk 0:01:39]} 19... Ne6 {[%clk
0:02:18.5]} 20. Nd5 {[%clk 0:01:23.9]} 20... b5 {[%clk 0:02:11.2]} 21. f4 {[%clk
0:01:09]} 21... gxf4 {[%clk 0:02:07.8]} 22. Nxf4 {[%clk 0:01:10.9]} 22... Qg5
{[%clk 0:02:08]} 23. Nxe6 {[%clk 0:01:06.4]} 23... Qxe3+ {[%clk 0:02:08.4]} 24.
Nxe3 {[%clk 0:01:08.3]} 24... fxe6 {[%clk 0:02:08.8]} 25. Rhf1 {[%clk
0:01:02.1]} 25... Bb7 {[%clk 0:02:06.4]} 26. cxb5 {[%clk 0:00:51.7]} 26... axb5
{[%clk 0:02:07]} 27. Rxf8 {[%clk 0:00:50.7]} 27... Rxf8 {[%clk 0:02:08.9]} 28.
Bxb5 {[%clk 0:00:49.1]} 28... Bxe4 {[%clk 0:02:10]} 29. Rf1 {[%clk 0:00:50.4]}
29... Rb8 {[%clk 0:02:00.9]} 30. a4 {[%clk 0:00:49.5]} 30... c6 {[%clk
0:01:58.2]} 31. Be2 {[%clk 0:00:49.8]} 31... Kg7 {[%clk 0:01:53.5]} 32. Rf4
{[%clk 0:00:49.1]} 32... d5 {[%clk 0:01:52.9]} 33. Nc2 {[%clk 0:00:48.3]} 33...
c5 {[%clk 0:01:52.8]} 34. a5 {[%clk 0:00:38.4]} 34... Ra8 {[%clk 0:01:46.4]} 35.
a6 {[%clk 0:00:39.1]} 35... Bd3 {[%clk 0:01:43.2]} 36. Bd1 {[%clk 0:00:35.4]}
36... Bxa6 {[%clk 0:01:41.2]} 37. Ra4 {[%clk 0:00:33.9]} 37... Bb7 {[%clk
0:01:37]} 38. Rxa8 {[%clk 0:00:34.5]} 38... Bxa8 {[%clk 0:01:38.4]} 39. Kd2
{[%clk 0:00:36.4]} 39... Kf6 {[%clk 0:01:29.4]} 40. b4 {[%clk 0:00:36.4]} 40...
cxb4 {[%clk 0:01:23.4]} 41. Nxb4 {[%clk 0:00:38.3]} 41... Ng6 {[%clk 0:01:14.2]}
42. Ke3 {[%clk 0:00:37.7]} 42... e5 {[%clk 0:01:15.2]} 43. Nd3 {[%clk
0:00:33.7]} 43... d4+ {[%clk 0:01:07.5]} 44. Kf2 {[%clk 0:00:33.9]} 44... e4
{[%clk 0:01:08.2]} 45. Ne1 {[%clk 0:00:33.6]} 45... Nf4 {[%clk 0:01:07]} 46. Nc2
{[%clk 0:00:30.8]} 46... Nxh3+ {[%clk 0:01:06.2]} 47. Kf1 {[%clk 0:00:31.8]}
47... Ke5 {[%clk 0:01:05.4]} 48. g5 {[%clk 0:00:31]} 48... Nxg5 {[%clk 0:01:06]}
49. Bg4 {[%clk 0:00:32.9]} 49... Kf4 {[%clk 0:01:06]} 50. Bc8 {[%clk 0:00:32.4]}
50... d3 {[%clk 0:01:06.9]} 0-1

[Event "*** Titled Tuesday 3|2 Blitz"]
[Site "Chess.com"]
[Date "2017.03.07"]
[Round "6"]
[White "ZapataCharlesS"]
[Black "SavelijTartakover"]
[Result "1-0"]
[WhiteElo "2653"]
[BlackElo "2578"]
[TimeControl "180+2"]
[EndTime "14:25:15 PST"]
[Termination "ZapataCharlesS won by checkmate"]

1. d4 {[%clk 0:03:02]} 1... Nf6 {[%clk 0:02:59.3]} 2. Nf3 {[%clk 0:03:01.9]}
2... g6 {[%clk 0:03:00]} 3. g3 {[%clk 0:03:01.7]} 3... Bg7 {[%clk 0:03:01.2]} 4.
Bg2 {[%clk 0:03:03.6]} 4... O-O {[%clk 0:03:02.5]} 5. O-O {[%clk 0:03:03.5]}
5... d6 {[%clk 0:03:03.9]} 6. a4 {[%clk 0:03:00.9]} 6... Na6 {[%clk 0:03:03.3]}
7. Nc3 {[%clk 0:02:56.8]} 7... c5 {[%clk 0:02:57.7]} 8. e4 {[%clk 0:02:41.4]}
8... cxd4 {[%clk 0:02:56.1]} 9. Nxd4 {[%clk 0:02:43.3]} 9... Nc5 {[%clk
0:02:56.6]} 10. Re1 {[%clk 0:02:41.6]} 10... Bd7 {[%clk 0:02:46]} 11. h3 {[%clk
0:02:36.9]} 11... Rc8 {[%clk 0:02:43.8]} 12. a5 {[%clk 0:02:34.8]} 12... a6
{[%clk 0:02:39.9]} 13. Be3 {[%clk 0:02:28.8]} 13... e5 {[%clk 0:02:35.4]} 14.
Nb3 {[%clk 0:02:16.5]} 14... Nxb3 {[%clk 0:02:30]} 15. cxb3 {[%clk 0:02:18.4]}
15... Bc6 {[%clk 0:02:29.5]} 16. Re2 {[%clk 0:02:17.4]} 16... Qe7 {[%clk
0:02:24]} 17. Rd2 {[%clk 0:02:16.6]} 17... Rfd8 {[%clk 0:02:24.2]} 18. Rc1
{[%clk 0:02:11.3]} 18... h5 {[%clk 0:02:21.3]} 19. Bg5 {[%clk 0:02:08.7]} 19...
Kh7 {[%clk 0:02:19.4]} 20. b4 {[%clk 0:02:08.3]} 20... Bh6 {[%clk 0:02:17.6]}
21. Bxh6 {[%clk 0:01:48.4]} 21... Kxh6 {[%clk 0:02:17.2]} 22. Qe1 {[%clk
0:01:45.9]} 22... Kg7 {[%clk 0:02:15.2]} 23. Rcd1 {[%clk 0:01:47.5]} 23... h4
{[%clk 0:02:11.5]} 24. Qe3 {[%clk 0:01:44.7]} 24... hxg3 {[%clk 0:02:09.6]} 25.
fxg3 {[%clk 0:01:43.2]} 25... Nh5 {[%clk 0:02:10.6]} 26. h4 {[%clk 0:01:40.9]}
26... Qe6 {[%clk 0:01:54.5]} 27. Kh2 {[%clk 0:01:32.2]} 27... Qc4 {[%clk
0:01:55.1]} 28. Bh3 {[%clk 0:01:14.4]} 28... Rb8 {[%clk 0:01:51.4]} 29. Rf1
{[%clk 0:01:04.9]} 29... Qxb4 {[%clk 0:01:44.3]} 30. Rdf2 {[%clk 0:01:05.2]}
30... Rf8 {[%clk 0:01:45.1]} 31. Bg4 {[%clk 0:00:58.3]} 31... Qd4 {[%clk
0:01:20.1]} 32. Qc1 {[%clk 0:00:38]} 32... Bxe4 {[%clk 0:01:09.7]} 33. Bxh5
{[%clk 0:00:36.2]} 33... Bd3 {[%clk 0:00:57.9]} 34. Be2 {[%clk 0:00:34.8]} 34...
Bxe2 {[%clk 0:00:51.7]} 35. Nxe2 {[%clk 0:00:34.6]} 35... Qd5 {[%clk 0:00:44.6]}
36. Nc3 {[%clk 0:00:29.3]} 36... Qxa5 {[%clk 0:00:38.7]} 37. Qg5 {[%clk
0:00:29.4]} 37... Qd8 {[%clk 0:00:38.3]} 38. Rf6 {[%clk 0:00:28.1]} 38... b5
{[%clk 0:00:31.1]} 39. Nd5 {[%clk 0:00:25.2]} 39... b4 {[%clk 0:00:29.4]} 40. h5
{[%clk 0:00:25.4]} 40... Qa5 {[%clk 0:00:20.8]} 41. Rxg6+ {[%clk 0:00:23.5]}
41... fxg6 {[%clk 0:00:20.3]} 42. Qxg6+ {[%clk 0:00:25.4]} 42... Kh8 {[%clk
0:00:21.5]} 43. Qh6+ {[%clk 0:00:26.6]} 43... Kg8 {[%clk 0:00:22.6]} 44. Ne7#
{[%clk 0:00:28.3]} 1-0

[Event "*** Titled Tuesday 3|2 Blitz"]
[Site "Chess.com"]
[Date "2017.03.07"]
[Round "6"]
[White "DrVelja"]
[Black "plouarzel"]
[Result "0-1"]
[WhiteElo "2498"]
[BlackElo "2357"]
[TimeControl "180+2"]
[EndTime "14:25:20 PST"]
[Termination "plouarzel won by resignation"]

1. e4 {[%clk 0:03:02]} 1... e5 {[%clk 0:03:00.4]} 2. Nf3 {[%clk 0:02:59.7]} 2...
Nc6 {[%clk 0:03:01.6]} 3. d4 {[%clk 0:02:59]} 3... exd4 {[%clk 0:03:03.5]} 4.
Nxd4 {[%clk 0:02:59.7]} 4... Nf6 {[%clk 0:03:04.6]} 5. Nxc6 {[%clk 0:02:59.9]}
5... bxc6 {[%clk 0:03:06.5]} 6. e5 {[%clk 0:03:01.5]} 6... Qe7 {[%clk
0:03:07.8]} 7. Qe2 {[%clk 0:03:03.1]} 7... Nd5 {[%clk 0:03:09.2]} 8. h4 {[%clk
0:03:04.8]} 8... a5 {[%clk 0:02:58]} 9. Nd2 {[%clk 0:03:02.1]} 9... a4 {[%clk
0:02:49.4]} 10. Nf3 {[%clk 0:02:50]} 10... Ba6 {[%clk 0:02:30.9]} 11. c4 {[%clk
0:02:48.7]} 11... Nb6 {[%clk 0:02:28.3]} 12. b3 {[%clk 0:02:11.9]} 12... d5
{[%clk 0:01:41.2]} 13. exd6 {[%clk 0:01:54.8]} 13... cxd6 {[%clk 0:01:39.8]} 14.
Bb2 {[%clk 0:01:48.1]} 14... d5 {[%clk 0:01:32.5]} 15. Qxe7+ {[%clk 0:01:41.3]}
15... Bxe7 {[%clk 0:01:33.5]} 16. cxd5 {[%clk 0:01:24.9]} 16... Bb4+ {[%clk
0:01:28.9]} 17. Kd1 {[%clk 0:01:19.6]} 17... Bxf1 {[%clk 0:01:21.2]} 18. Rxf1
{[%clk 0:01:21.5]} 18... O-O-O {[%clk 0:01:19.6]} 19. Kc2 {[%clk 0:01:20]} 19...
Nxd5 {[%clk 0:01:11.6]} 20. Rad1 {[%clk 0:01:11.4]} 20... a3 {[%clk 0:01:12.9]}
21. Bd4 {[%clk 0:01:04.2]} 21... Rhe8 {[%clk 0:01:06.8]} 22. Ng1 {[%clk
0:00:42.6]} 22... Kb7 {[%clk 0:01:00.6]} 23. g3 {[%clk 0:00:34]} 23... Re4
{[%clk 0:00:58.6]} 24. Bxg7 {[%clk 0:00:33.3]} 24... Rde8 {[%clk 0:00:52.6]} 25.
Rd4 {[%clk 0:00:26.7]} 25... f6 {[%clk 0:00:49.3]} 26. Rxe4 {[%clk 0:00:24.5]}
26... Rxe4 {[%clk 0:00:51.2]} 27. Bh6 {[%clk 0:00:23.7]} 27... Nc3 {[%clk
0:00:52.6]} 28. Bd2 {[%clk 0:00:16.5]} 28... Nd5 {[%clk 0:00:27.4]} 29. Nf3
{[%clk 0:00:06]} 29... Re2 {[%clk 0:00:24.3]} 30. Kd3 {[%clk 0:00:05.7]} 30...
Re8 {[%clk 0:00:22.5]} 31. Bxb4 {[%clk 0:00:05.5]} 31... Nxb4+ {[%clk
0:00:24.4]} 32. Kc4 {[%clk 0:00:07]} 32... Nxa2 {[%clk 0:00:17.2]} 33. Nd4
{[%clk 0:00:07.8]} 33... c5 {[%clk 0:00:10.4]} 34. Nf5 {[%clk 0:00:08.6]} 34...
Re2 {[%clk 0:00:10.8]} 35. Kxc5 {[%clk 0:00:05.5]} 35... Nc3 {[%clk 0:00:11.8]}
36. Nd4 {[%clk 0:00:06.7]} 36... Rd2 {[%clk 0:00:11.7]} 37. Kb4 {[%clk
0:00:04.1]} 37... Nd1 {[%clk 0:00:06]} 38. Nb5 {[%clk 0:00:02.6]} 38... a2
{[%clk 0:00:06.8]} 39. Nc3 {[%clk 0:00:03.3]} 39... a1=Q {[%clk 0:00:07.9]} 40.
Nxd1 {[%clk 0:00:04.5]} 40... Rxd1 {[%clk 0:00:08.8]} 41. Rxd1 {[%clk
0:00:06.4]} 41... Qxd1 {[%clk 0:00:10]} 0-1

[Event "*** Titled Tuesday 3|2 Blitz"]
[Site "Chess.com"]
[Date "2017.03.07"]
[Round "6"]
[White "afgano29"]
[Black "PaulfromSPb"]
[Result "0-1"]
[WhiteElo "2416"]
[BlackElo "2540"]
[TimeControl "180+2"]
[EndTime "14:25:31 PST"]
[Termination "PaulfromSPb won by resignation"]

1. d4 {[%clk 0:03:02]} 1... Nf6 {[%clk 0:02:58.8]} 2. c4 {[%clk 0:03:02.1]} 2...
e6 {[%clk 0:02:59.9]} 3. Nf3 {[%clk 0:03:02.8]} 3... b6 {[%clk 0:03:00.9]} 4. a3
{[%clk 0:03:03.9]} 4... Ba6 {[%clk 0:03:01.3]} 5. Qc2 {[%clk 0:03:04]} 5... c5
{[%clk 0:03:02.9]} 6. e4 {[%clk 0:03:04.8]} 6... cxd4 {[%clk 0:03:01.7]} 7. e5
{[%clk 0:03:05.7]} 7... Ng8 {[%clk 0:02:56.4]} 8. Nxd4 {[%clk 0:03:03.6]} 8...
Nc6 {[%clk 0:02:56.2]} 9. Nxc6 {[%clk 0:02:54]} 9... dxc6 {[%clk 0:02:56.7]} 10.
Be2 {[%clk 0:02:53.1]} 10... Qc7 {[%clk 0:02:52.9]} 11. Bf4 {[%clk 0:02:49.2]}
11... Ne7 {[%clk 0:02:53.8]} 12. Bg3 {[%clk 0:02:32.3]} 12... Nf5 {[%clk
0:02:53.2]} 13. O-O {[%clk 0:02:22.5]} 13... Nxg3 {[%clk 0:02:50.8]} 14. hxg3
{[%clk 0:02:21.8]} 14... Qxe5 {[%clk 0:02:50.4]} 15. Bf3 {[%clk 0:02:22.3]}
15... Bb7 {[%clk 0:02:50.9]} 16. Nc3 {[%clk 0:02:18.9]} 16... Be7 {[%clk
0:02:47.1]} 17. Rfd1 {[%clk 0:02:14.2]} 17... Qc7 {[%clk 0:02:44.4]} 18. c5
{[%clk 0:01:54.2]} 18... Bxc5 {[%clk 0:02:41.3]} 19. b4 {[%clk 0:01:53.1]} 19...
Be7 {[%clk 0:02:36.9]} 20. Nb5 {[%clk 0:01:41.4]} 20... Qc8 {[%clk 0:02:37.9]}
21. Nd6+ {[%clk 0:00:50]} 21... Bxd6 {[%clk 0:02:38.4]} 22. Rxd6 {[%clk
0:00:51.9]} 22... O-O {[%clk 0:02:36.8]} 23. Rad1 {[%clk 0:00:46.1]} 23... c5
{[%clk 0:02:33.6]} 24. Bxb7 {[%clk 0:00:44.5]} 24... Qxb7 {[%clk 0:02:34.5]} 25.
bxc5 {[%clk 0:00:46]} 25... bxc5 {[%clk 0:02:35.5]} 26. Qxc5 {[%clk 0:00:47.6]}
26... Rac8 {[%clk 0:02:34.5]} 27. Qa5 {[%clk 0:00:44.5]} 27... Qc7 {[%clk
0:02:28.6]} 28. Qa4 {[%clk 0:00:39.6]} 28... a5 {[%clk 0:02:23.5]} 29. Rd7
{[%clk 0:00:37.5]} 29... Qc5 {[%clk 0:02:23.6]} 30. Rb7 {[%clk 0:00:24.3]} 30...
Ra8 {[%clk 0:02:21]} 31. Rdd7 {[%clk 0:00:23.5]} 31... g6 {[%clk 0:02:19.8]} 32.
Qf4 {[%clk 0:00:22.8]} 32... Qf5 {[%clk 0:02:15.8]} 33. Qxf5 {[%clk 0:00:23.4]}
33... gxf5 {[%clk 0:02:15.9]} 34. Ra7 {[%clk 0:00:23.6]} 34... Rxa7 {[%clk
0:02:00]} 35. Rxa7 {[%clk 0:00:25.5]} 35... Rb8 {[%clk 0:01:59.8]} 36. Rxa5
{[%clk 0:00:26.5]} 36... Rb1+ {[%clk 0:02:00.4]} 37. Kh2 {[%clk 0:00:27.7]}
37... Rb2 {[%clk 0:02:01.7]} 38. f3 {[%clk 0:00:28.2]} 38... Kg7 {[%clk
0:02:01]} 39. Ra7 {[%clk 0:00:28.3]} 39... Ra2 {[%clk 0:02:01.9]} 40. Kh3 {[%clk
0:00:29.3]} 40... Kg6 {[%clk 0:02:00.1]} 41. g4 {[%clk 0:00:29.8]} 41... f4
{[%clk 0:01:59.9]} 42. a4 {[%clk 0:00:26.9]} 42... Ra1 {[%clk 0:01:59.2]} 43.
Kh2 {[%clk 0:00:27.9]} 43... f6 {[%clk 0:01:57.1]} 44. a5 {[%clk 0:00:23.5]}
44... h5 {[%clk 0:01:56.6]} 45. gxh5+ {[%clk 0:00:23.5]} 45... Kxh5 {[%clk
0:01:57.9]} 46. a6 {[%clk 0:00:19.7]} 46... Kg6 {[%clk 0:01:57.9]} 47. Ra8
{[%clk 0:00:20.4]} 47... e5 {[%clk 0:01:58]} 48. Ra7 {[%clk 0:00:17.3]} 48... f5
{[%clk 0:01:57.3]} 49. Re7 {[%clk 0:00:11.1]} 49... Kf6 {[%clk 0:01:56.9]} 50.
Rh7 {[%clk 0:00:12.1]} 50... e4 {[%clk 0:01:56.5]} 51. Rh6+ {[%clk 0:00:11.6]}
51... Kg5 {[%clk 0:01:55.1]} 52. Re6 {[%clk 0:00:11.5]} 52... e3 {[%clk
0:01:55.6]} 53. Re8 {[%clk 0:00:06.4]} 53... Rxa6 {[%clk 0:01:55.1]} 54. Rg8+
{[%clk 0:00:07.3]} 54... Rg6 {[%clk 0:01:55.2]} 55. Re8 {[%clk 0:00:08.1]} 55...
Rh6+ {[%clk 0:01:54.3]} 56. Kg1 {[%clk 0:00:09.2]} 56... Rd6 {[%clk 0:01:53.6]}
57. Kh2 {[%clk 0:00:09.6]} 57... Rd1 {[%clk 0:01:51.3]} 58. Re6 {[%clk
0:00:09.9]} 58... Rd2 {[%clk 0:01:51.4]} 59. Re8 {[%clk 0:00:10.6]} 59... Kf6
{[%clk 0:01:51.8]} 60. Kh3 {[%clk 0:00:10.5]} 60... Ra2 {[%clk 0:01:50.9]} 61.
Kh2 {[%clk 0:00:11.4]} 61... Ra6 {[%clk 0:01:50.7]} 62. Kg1 {[%clk 0:00:11.2]}
62... Re6 {[%clk 0:01:50.6]} 63. Rf8+ {[%clk 0:00:11.8]} 63... Ke7 {[%clk
0:01:51.5]} 64. Ra8 {[%clk 0:00:05]} 64... e2 {[%clk 0:01:52.1]} 65. Ra7+ {[%clk
0:00:06]} 65... Kf6 {[%clk 0:01:52.8]} 0-1

[Event "*** Titled Tuesday 3|2 Blitz"]
[Site "Chess.com"]
[Date "2017.03.07"]
[Round "6"]
[White "Abrito99"]
[Black "SergeiAza"]
[Result "1-0"]
[WhiteElo "2404"]
[BlackElo "2587"]
[TimeControl "180+2"]
[EndTime "14:26:08 PST"]
[Termination "Abrito99 won on time"]

1. e4 {[%clk 0:03:02]} 1... e5 {[%clk 0:03:00.2]} 2. Nf3 {[%clk 0:03:02.4]} 2...
Nc6 {[%clk 0:03:01.1]} 3. Bc4 {[%clk 0:03:03.5]} 3... Bc5 {[%clk 0:03:01.1]} 4.
O-O {[%clk 0:03:03.3]} 4... d6 {[%clk 0:03:00.9]} 5. c3 {[%clk 0:03:02.7]} 5...
Nf6 {[%clk 0:03:01.3]} 6. d3 {[%clk 0:03:03.5]} 6... a6 {[%clk 0:02:58.3]} 7.
Nbd2 {[%clk 0:02:56.9]} 7... O-O {[%clk 0:02:55.9]} 8. h3 {[%clk 0:02:54.2]}
8... h6 {[%clk 0:02:53.2]} 9. Bb3 {[%clk 0:02:51.6]} 9... Be6 {[%clk 0:02:51.6]}
10. Re1 {[%clk 0:02:51.1]} 10... Ba7 {[%clk 0:02:47.4]} 11. Nf1 {[%clk
0:02:45.8]} 11... Re8 {[%clk 0:02:45.7]} 12. Ng3 {[%clk 0:02:45.5]} 12... d5
{[%clk 0:02:42.5]} 13. Qe2 {[%clk 0:02:33.1]} 13... Qd7 {[%clk 0:02:42.4]} 14.
Kh2 {[%clk 0:02:10.8]} 14... Rad8 {[%clk 0:02:40.9]} 15. Bc2 {[%clk 0:02:09.3]}
15... b5 {[%clk 0:02:28.6]} 16. Nh4 {[%clk 0:02:09.4]} 16... d4 {[%clk
0:02:15.8]} 17. Nhf5 {[%clk 0:02:05.7]} 17... Bc5 {[%clk 0:02:14.7]} 18. Qf3
{[%clk 0:02:01.3]} 18... Be7 {[%clk 0:01:31.3]} 19. Bd2 {[%clk 0:01:18.9]} 19...
dxc3 {[%clk 0:01:05.1]} 20. bxc3 {[%clk 0:01:19.4]} 20... Kh8 {[%clk 0:00:58.3]}
21. Be3 {[%clk 0:01:05.5]} 21... Nh7 {[%clk 0:00:41.2]} 22. d4 {[%clk
0:00:53.2]} 22... exd4 {[%clk 0:00:37.9]} 23. cxd4 {[%clk 0:00:53.2]} 23... Bg5
{[%clk 0:00:37.3]} 24. d5 {[%clk 0:00:44.6]} 24... Ne5 {[%clk 0:00:36]} 25. Qe2
{[%clk 0:00:39.3]} 25... Bxf5 {[%clk 0:00:36.8]} 26. Nxf5 {[%clk 0:00:35.1]}
26... Nc4 {[%clk 0:00:36.6]} 27. Bd4 {[%clk 0:00:32.9]} 27... Bf6 {[%clk
0:00:36.5]} 28. Qd3 {[%clk 0:00:29.3]} 28... Be5+ {[%clk 0:00:34.1]} 29. Kh1
{[%clk 0:00:26.6]} 29... Nf6 {[%clk 0:00:32.8]} 30. f4 {[%clk 0:00:23.1]} 30...
Bxd4 {[%clk 0:00:31.2]} 31. Qxd4 {[%clk 0:00:22.8]} 31... c6 {[%clk 0:00:31.8]}
32. Nxh6 {[%clk 0:00:20.2]} 32... cxd5 {[%clk 0:00:27.3]} 33. e5 {[%clk
0:00:21.6]} 33... Ne4 {[%clk 0:00:26.5]} 34. Ng4 {[%clk 0:00:19.4]} 34... Qf5
{[%clk 0:00:24.1]} 35. Rad1 {[%clk 0:00:14.5]} 35... Ng3+ {[%clk 0:00:22.7]} 36.
Kh2 {[%clk 0:00:14.9]} 36... Qxc2 {[%clk 0:00:24.1]} 37. Kxg3 {[%clk 0:00:14.5]}
37... b4 {[%clk 0:00:23.4]} 38. Rd3 {[%clk 0:00:11.3]} 38... Nb2 {[%clk
0:00:20.8]} 39. Rf3 {[%clk 0:00:10.6]} 39... Na4 {[%clk 0:00:18.6]} 40. Qxb4
{[%clk 0:00:10.1]} 40... Qc4 {[%clk 0:00:17.9]} 41. Qd2 {[%clk 0:00:08.4]} 41...
d4 {[%clk 0:00:18.3]} 42. f5 {[%clk 0:00:09.9]} 42... Nc3 {[%clk 0:00:13]} 43.
f6 {[%clk 0:00:09.6]} 43... Qc6 {[%clk 0:00:04.9]} 44. Qg5 {[%clk 0:00:08.1]}
1-0